bitfinex/quotes_SOLUSD_20220117
["timestamp","ask_amount","ask_price","bid_price","bid_amount"]
[1642458312901,44.69090964,138.3,138.24,0.25]
[1642458313302,44.95090964,138.3,138.24,0.25]
[1642458313600,44.95090964,138.3,138.23,0.25]
[1642458313800,44.95090964,138.3,138.21,0.25]
[1642458314201,10.8508,138.29,138.2,3.77569509]
[1642458314403,11.3608,138.29,138.18,46.64391022]
[1642458314606,1.75619958,138.28,138.18,46.64391022]
[1642458314802,14.39676215,138.27,138.18,46.64391022]
[1642458315302,10.8539,138.25,138.18,46.64391022]
[1642458315703,0.26,138.27,138.18,57.49571022]
[1642458315903,6.26,138.28,138.18,57.49571022]
[1642458316104,0.26,138.28,138.18,57.49571022]
[1642458316305,10.8515,138.26,138.18,46.90391022]
[1642458316705,11.1115,138.26,138.19,0.25]
[1642458317805,10.8515,138.26,138.19,0.25]
[1642458318233,10.8508,138.27,138.19,11.101]
[1642458318433,73.56682916,138.3,138.19,107.1098]
[1642458318634,73.31682916,138.3,138.19,120.5518]
[1642458318934,36.1706,138.3,138.19,120.5518]
[1642458319134,10.85,138.28,138.19,120.5518]
[1642458319334,170.7343,138.39,138.19,120.5518]
[1642458319537,74.7075244,138.37,138.2,1.65494791]
[1642458319837,36.1601,138.34,138.23,10.8476]
[1642458320034,42.64410024,138.35,138.24,35.73261746]
[1642458320237,2.2875244,138.37,138.24,35.73261746]
[1642458320437,10.8459,138.34,138.25,0.25]
[1642458320937,11.1059,138.34,138.25,0.25]
[1642458321136,0.26,138.34,138.25,11.0959]
[1642458321337,0.26,138.34,138.25,17.3559]
[1642458321536,37.34060316,138.37,138.25,17.3559]
[1642458321936,37.34060316,138.37,138.25,40.0437]
[1642458322137,10.8444,138.35,138.25,37.7561756]
[1642458322340,11.1044,138.35,138.25,37.7561756]
[1642458322538,0.26,138.35,138.25,37.7561756]
[1642458323040,35.38337632,138.37,138.25,37.7561756]
[1642458323339,35.64337632,138.37,138.25,37.7561756]
[1642458323538,10.8436,138.36,138.25,37.7561756]
[1642458323739,11.0936,138.36,138.25,37.7561756]
[1642458323940,11.3536,138.36,138.25,37.7561756]
[1642458324337,11.3536,138.36,138.28,10.8439]
[1642458324538,11.3536,138.36,138.29,41.37695983]
[1642458324739,11.3536,138.36,138.29,41.62695983]
[1642458327243,11.3536,138.36,138.29,47.62695983]
[1642458327244,11.1036,138.36,138.29,47.62695983]
[1642458327445,11.1036,138.36,138.29,41.62695983]
[1642458327842,11.1036,138.36,138.29,47.62695983]
[1642458328041,11.1036,138.36,138.29,41.62695983]
[1642458328540,11.1036,138.36,138.29,52.47005983]
[1642458329344,10.8436,138.36,138.29,52.47005983]
[1642458329742,35.38337632,138.37,138.29,52.47005983]
[1642458329743,12.35365686,138.38,138.29,52.47005983]
[1642458329945,12.35365686,138.38,138.29,58.73005983]
[1642458330144,12.35365686,138.38,138.29,131.15005983]
[1642458332849,15.9341355,138.37,138.29,131.15005983]
[1642458333245,20.31838392,138.37,138.29,131.15005983]
[1642458333745,20.31838392,138.37,138.29,58.73005983]
[1642458334245,4.12424842,138.37,138.29,58.73005983]
[1642458334447,12.35365686,138.38,138.29,58.73005983]
[1642458334645,12.35365686,138.38,138.29,52.73005983]
[1642458335148,61.13479362,138.38,138.29,52.73005983]
[1642458335349,4.12435921,138.37,138.29,52.73005983]
[1642458336954,4.12435921,138.37,138.29,58.73005983]
[1642458337153,4.38435921,138.37,138.29,58.73005983]
[1642458337555,0.26,138.37,138.29,58.73005983]
[1642458337755,1.77085686,138.38,138.29,82.30045983]
[1642458337957,1.51085686,138.38,138.29,154.72045983]
[1642458339357,10.8405,138.4,138.29,154.72045983]
[1642458339557,0.26,138.38,138.29,154.72045983]
[1642458340255,16.8405,138.4,138.29,156.36498416]
[1642458340459,6.0,138.4,138.29,156.36498416]
[1642458340657,6.15091963,138.41,138.29,156.36498416]
[1642458341159,12.15091963,138.41,138.29,156.36498416]
[1642458341361,6.15091963,138.41,138.29,156.36498416]
[1642458341557,4.12386876,138.41,138.29,156.36498416]
[1642458341757,4.38386876,138.41,138.29,156.36498416]
[1642458341959,4.38386876,138.41,138.29,156.11498416]
[1642458342359,3.38386876,138.41,138.29,156.11498416]
[1642458342558,3.12386876,138.4,138.29,156.11498416]
[1642458342757,3.38386876,138.4,138.29,156.11498416]
[1642458343358,0.26,138.4,138.33,10.8388]
[1642458343558,6.26,138.4,138.34,36.82664689]
[1642458343760,0.26,138.4,138.34,37.08664689]
[1642458343959,6.26,138.4,138.34,37.08664689]
[1642458344162,0.26,138.4,138.34,43.08664689]
[1642458344395,0.26,138.4,138.34,37.08664689]
[1642458344560,0.25,138.41,138.35,10.8388]
[1642458344766,0.25,138.41,138.35,11.0988]
[1642458345565,0.25,138.41,138.36,0.25]
[1642458348173,51.89425003,138.42,138.36,0.25]
[1642458348377,17.0987,138.42,138.36,0.25]
[1642458350475,17.0987,138.42,138.36,11.088]
[1642458350676,17.0987,138.42,138.36,11.348]
[1642458350881,6.26,138.42,138.36,11.348]
[1642458351278,0.26,138.42,138.36,11.348]
[1642458351478,11.0979,138.43,138.36,11.348]
[1642458354198,11.0979,138.43,138.36,0.51]
[1642458354399,11.0979,138.43,138.36,0.25]
[1642458354800,17.0979,138.43,138.36,0.25]
[1642458355001,17.0979,138.43,138.31,23.1751]
[1642458355404,17.0979,138.43,138.31,29.1751]
[1642458355603,17.0979,138.43,138.31,70.23694681]
[1642458355803,17.0979,138.43,138.32,10.8408]
[1642458356302,0.25,138.42,138.33,0.25]
[1642458356504,10.8416,138.39,138.32,10.8408]
[1642458356702,25.56018375,138.39,138.32,10.8408]
[1642458356905,25.82018375,138.39,138.32,10.8408]
[1642458357302,11.1016,138.39,138.32,10.8408]
[1642458357805,11.1016,138.39,138.33,0.25]
[1642458358004,10.8416,138.39,138.33,11.0905]
[1642458358203,10.8416,138.39,138.32,0.25]
[1642458358803,16.8416,138.39,138.32,0.25]
[1642458359004,10.8416,138.39,138.32,0.25]
[1642458359610,10.8416,138.39,138.32,11.0912]
[1642458359811,10.8416,138.39,138.32,17.3512]
[1642458360014,11.1016,138.39,138.32,0.51]
[1642458360411,11.1016,138.39,138.32,0.25]
[1642458361513,11.1016,138.39,138.32,11.0915]
[1642458361914,11.1016,138.39,138.32,11.3515]
[1642458362913,11.1016,138.39,138.32,11.1015]
[1642458364514,29.46059376,138.39,138.32,10.8415]
[1642458364914,35.46059376,138.39,138.31,74.82904681]
[1642458365316,35.46059376,138.39,138.32,0.25]
[1642458365915,17.1016,138.39,138.32,0.25]
[1642458366716,11.1016,138.39,138.32,0.25]
[1642458367619,10.8416,138.39,138.32,11.0915]
[1642458367820,14.96349176,138.4,138.32,17.3515]
[1642458368021,4.12339176,138.4,138.32,89.7715]
[1642458368421,4.12339176,138.41,138.32,89.7715]
[1642458368622,4.12339176,138.41,138.35,10.8382]
[1642458368922,4.12339176,138.41,138.36,0.25]
[1642458369223,6.26,138.41,138.36,0.25]
[1642458369422,0.26,138.41,138.36,0.25]
[1642458369621,6.26,138.41,138.36,0.25]
[1642458369820,6.0,138.41,138.37,41.03138431]
[1642458370025,4.12339176,138.42,138.37,41.03138431]
[1642458370222,6.0,138.41,138.38,0.25]
[1642458370422,4.12339176,138.42,138.4,37.95341562]
[1642458370668,4.12339176,138.42,138.4,46.79641562]
[1642458370850,4.12339176,138.42,138.41,0.25]
[1642458371649,4.12339176,138.42,138.41,6.31439994]
[1642458371853,4.12339176,138.42,138.41,17.14889994]
[1642458372050,4.12339176,138.46,138.41,17.14889994]
[1642458372250,0.26,138.45,138.41,17.14889994]
[1642458372651,4.12339176,138.46,138.41,17.14889994]
[1642458373855,10.38339176,138.46,138.41,17.14889994]
[1642458374056,4.12339176,138.46,138.41,17.14889994]
[1642458374254,4.12339176,138.46,138.41,31.63989994]
[1642458374457,4.12339176,138.47,138.41,25.63989994]
[1642458375256,4.12339176,138.48,138.41,25.63989994]
[1642458375655,4.38339176,138.48,138.41,25.63989994]
[1642458375856,4.38339176,138.48,138.41,47.95939994]
[1642458376055,4.38339176,138.48,138.41,41.95939994]
[1642458376257,4.12339176,138.49,138.41,47.95939994]
[1642458376656,4.38339176,138.49,138.41,47.95939994]
[1642458377456,4.12339176,138.49,138.41,47.95939994]
[1642458377659,4.12339176,138.49,138.42,72.42]
[1642458377859,4.12339176,138.49,138.44,10.8306]
[1642458378259,4.12339176,138.49,138.45,0.25]
[1642458378663,4.12339176,138.49,138.45,36.27389772]
[1642458378863,4.12339176,138.5,138.45,36.53389772]
[1642458379462,4.12339176,138.5,138.45,43.14789772]
[1642458379763,4.12339176,138.5,138.46,10.8304]
[1642458380167,4.12339176,138.5,138.47,0.25]
[1642458380363,4.12339176,138.5,138.48,6.06439994]
[1642458381564,4.12339176,138.51,138.48,6.06439994]
[1642458381865,4.38339176,138.51,138.48,52.02541611]
[1642458382268,0.36262553,138.55,138.49,72.67]
[1642458382464,0.36262553,138.55,138.5,95.7811]
[1642458382864,0.36262553,138.55,138.51,0.25]
[1642458383063,0.36262553,138.55,138.51,11.0756]
[1642458383266,0.36262553,138.55,138.51,62.65749225]
[1642458383865,0.36262553,138.55,138.51,17.0756]
[1642458384463,0.36262553,138.55,138.51,11.0756]
[1642458384665,0.36262553,138.55,138.51,17.0756]
[1642458384867,0.36262553,138.55,138.51,64.37296372]
[1642458385867,0.36262553,138.55,138.51,17.3356]
[1642458386169,0.36262553,138.55,138.51,17.0756]
[1642458386567,0.36262553,138.55,138.51,11.0756]
[1642458386768,0.36262553,138.55,138.51,17.0756]
[1642458386968,0.36262553,138.55,138.51,11.0756]
[1642458387470,0.36262553,138.55,138.51,17.0756]
[1642458388268,0.36262553,138.55,138.51,11.0756]
[1642458389267,2.0595969,138.54,138.51,11.0756]
[1642458389467,2.0595969,138.54,138.52,6.06439994]
[1642458389769,2.0595969,138.54,138.53,0.25]
[1642458393173,2.42222243,138.55,138.53,0.25]
[1642458393475,2.42222243,138.55,138.54,6.06439994]
[1642458394273,2.68222243,138.55,138.54,6.06439994]
[1642458394473,2.68222243,138.55,138.51,10.8265]
[1642458394674,0.62262553,138.55,138.52,0.25]
[1642458394873,0.36262553,138.55,138.53,3.03219997]
[1642458395474,2.05967341,138.54,138.53,3.03219997]
[1642458396475,2.05967341,138.54,138.48,36.088]
[1642458396675,2.05967341,138.54,138.5,10.8266]
[1642458396903,2.05967341,138.54,138.5,11.0866]
[1642458397374,2.05967341,138.53,138.5,11.0866]
[1642458397577,2.05967341,138.53,138.51,6.06439994]
[1642458397776,2.31967341,138.53,138.51,6.06439994]
[1642458398375,2.31967341,138.53,138.47,22.8356]
[1642458398577,2.31967341,138.53,138.47,0.26]
[1642458398776,2.31967341,138.53,138.47,52.49417059]
[1642458399178,2.05967341,138.52,138.47,52.49417059]
[1642458399382,2.31967341,138.52,138.47,52.49417059]
[1642458400591,2.05967341,138.52,138.47,58.49417059]
[1642458400994,2.05967341,138.52,138.47,52.49417059]
[1642458401393,2.05967341,138.52,138.48,0.25]
[1642458401794,2.05967341,138.52,138.48,11.0782]
[1642458401994,2.31967341,138.52,138.48,11.0782]
[1642458402600,2.31967341,138.52,138.48,0.25]
[1642458402994,2.05967341,138.51,138.48,0.25]
[1642458403196,2.05967341,138.51,138.49,6.06439994]
[1642458410826,2.05967341,138.51,138.49,12.06439994]
[1642458411031,2.05967341,138.51,138.49,6.06439994]
[1642458413631,0.36262553,138.55,138.49,6.06439994]
[1642458413828,0.36262553,138.55,138.49,17.15199994]
[1642458414030,0.36262553,138.55,138.49,23.15199994]
[1642458414429,0.36262553,138.55,138.5,0.25]
[1642458414629,0.36262553,138.55,138.41,14.64421296]
[1642458414829,0.36262553,138.55,138.42,49.0323]
[1642458415032,11.19082553,138.55,138.42,48.7823]
[1642458415231,11.19082553,138.55,138.42,54.7823]
[1642458415534,0.25,138.54,138.42,54.7823]
[1642458415731,35.04033664,138.54,138.43,48.74292505]
[1642458416134,35.30033664,138.54,138.43,54.74292505]
[1642458416332,35.30033664,138.54,138.43,55.00292505]
[1642458416532,10.8324,138.51,138.43,65.83532505]
[1642458416732,49.33897922,138.51,138.43,65.83532505]
[1642458416934,49.59897922,138.51,138.43,65.83532505]
[1642458417832,38.76657922,138.51,138.43,65.83532505]
[1642458418239,38.76657922,138.51,138.44,0.25]
[1642458418433,38.76657922,138.51,138.46,10.8288]
[1642458418735,38.76657922,138.51,138.44,0.25]
[1642458418933,38.76657922,138.51,138.43,55.00292505]
[1642458419135,38.76657922,138.51,138.43,58.77312958]
[1642458419334,38.76657922,138.51,138.45,10.8309]
[1642458419535,38.76657922,138.51,138.46,39.41598044]
[1642458419536,0.26,138.51,138.46,39.41598044]
[1642458419937,0.25,138.52,138.46,45.41598044]
[1642458420135,0.25,138.52,138.46,39.41598044]
[1642458420335,0.25,138.52,138.47,0.25]
[1642458420536,10.8302,138.53,138.47,0.25]
[1642458420937,10.8291,138.54,138.47,0.25]
[1642458421136,11.0791,138.54,138.47,0.25]
[1642458421737,11.3391,138.54,138.47,0.25]
[1642458421937,11.3391,138.54,138.47,11.0793]
[1642458422339,11.3391,138.54,138.47,11.3393]
[1642458422940,11.0891,138.54,138.47,11.3393]
[1642458423772,0.25,138.53,138.47,11.3393]
[1642458424672,11.0798,138.53,138.47,11.3393]
[1642458424872,11.3398,138.53,138.47,11.3393]
[1642458425673,31.02674646,138.52,138.47,11.3393]
[1642458425872,31.28674646,138.52,138.47,11.3393]
[1642458426275,31.28674646,138.52,138.47,11.0793]
[1642458426477,31.28674646,138.52,138.47,0.25]
[1642458426875,42.11744646,138.52,138.44,24.7371]
[1642458427275,42.11744646,138.52,138.45,0.25]
[1642458427876,42.11744646,138.52,138.45,11.0808]
[1642458428076,42.11744646,138.52,138.45,17.0808]
[1642458428877,11.0907,138.52,138.45,17.0808]
[1642458430180,11.0907,138.52,138.45,11.0808]
[1642458430380,72.42,138.51,138.44,10.8315]
[1642458430583,0.30468116,138.49,138.37,7.54108281]
[1642458430781,72.42,138.46,138.31,517.63665095]
[1642458430980,72.42,138.46,138.31,510.53601289]
[1642458431181,0.25,138.45,138.31,506.76445095]
[1642458431382,30.17999872,138.44,138.32,41.2045468]
[1642458431585,102.59999872,138.44,138.32,41.2045468]
[1642458431781,102.59999872,138.44,138.33,24.4999]
[1642458431782,0.25,138.43,138.33,24.4999]
[1642458431981,11.0892,138.43,138.33,24.7499]
[1642458432183,11.0892,138.43,138.33,30.7499]
[1642458432380,11.3492,138.43,138.33,30.7499]
[1642458432782,11.3492,138.43,138.33,31.0099]
[1642458432983,11.3492,138.43,138.33,41.849]
[1642458433782,11.3492,138.43,138.33,41.599]
[1642458435184,17.3492,138.43,138.34,0.25]
[1642458435385,17.3492,138.43,138.35,48.64752623]
[1642458435583,17.3492,138.43,138.35,71.88162623]
[1642458435783,17.3492,138.43,138.36,0.25]
[1642458437083,1.75619958,138.42,138.36,0.25]
[1642458437283,11.0907,138.41,138.36,0.25]
[1642458437683,11.3507,138.41,138.36,0.25]
[1642458438785,17.3507,138.41,138.36,0.25]
[1642458438986,55.12139215,138.41,138.36,0.25]
[1642458440088,17.3507,138.41,138.36,0.25]
[1642458441189,17.3507,138.41,138.34,0.25]
[1642458441393,17.3507,138.41,138.32,22.9953]
[1642458441923,60.06754527,138.41,138.33,45.66316678]
[1642458442288,60.06754527,138.41,138.34,0.25]
[1642458443189,17.3507,138.41,138.34,0.25]
[1642458446988,11.1007,138.41,138.34,0.25]
[1642458447181,11.1007,138.41,138.33,51.66316678]
[1642458448784,17.1007,138.41,138.34,0.25]
[1642458449186,16.8407,138.41,138.34,0.25]
[1642458450815,29.26330799,138.4,138.33,45.66316678]
[1642458451016,10.8414,138.38,138.33,45.66316678]
[1642458451615,11.1014,138.38,138.33,45.66316678]
[1642458454416,11.0927,138.37,138.33,45.66316678]
[1642458454818,11.3527,138.37,138.33,45.66316678]
[1642458455418,11.1027,138.37,138.33,45.66316678]
[1642458458320,11.1027,138.37,138.34,0.25]
[1642458458927,11.1027,138.37,138.33,45.66316678]
[1642458461122,10.8427,138.37,138.33,45.66316678]
[1642458461324,10.8427,138.37,138.34,0.25]
[1642458462927,10.8427,138.37,138.36,45.16236573]
[1642458465727,10.8417,138.38,138.36,48.1945657]
[1642458465929,10.8417,138.38,138.36,45.16236573]
[1642458467930,10.8417,138.38,138.37,6.06439994]
[1642458468164,10.8417,138.38,138.36,45.16236573]
[1642458468830,11.1017,138.38,138.36,45.16236573]
[1642458470234,0.26,138.38,138.37,0.25]
[1642458470430,37.87951003,138.47,138.37,0.25]
[1642458470630,54.55246651,138.47,138.37,23.1216]
[1642458470830,1.75619958,138.46,138.37,23.1216]
[1642458471032,54.55246651,138.47,138.37,23.1216]
[1642458471233,54.55246651,138.47,138.37,23.3816]
[1642458471434,10.8381,138.44,138.37,23.3816]
[1642458471834,16.8381,138.44,138.37,23.3816]
[1642458472338,17.0981,138.44,138.37,23.3816]
[1642458472536,11.0981,138.44,138.37,23.3816]
[1642458473840,17.0981,138.44,138.37,23.3816]
[1642458475143,17.0981,138.44,138.37,29.3816]
[1642458475745,11.0981,138.44,138.37,29.3816]
[1642458475942,11.0981,138.44,138.37,40.2192]
[1642458476843,11.0981,138.44,138.37,112.6392]
[1642458477045,11.0681,138.44,138.37,112.6392]
[1642458477646,10.8361,138.45,138.37,112.6392]
[1642458477844,11.0961,138.45,138.37,112.6392]
[1642458478044,0.26,138.45,138.37,112.6392]
[1642458478450,0.26,138.48,138.37,112.6392]
[1642458478651,40.50102641,138.49,138.37,112.6392]
[1642458479050,46.50102641,138.49,138.37,112.6392]
[1642458479550,10.8354,138.46,138.37,112.3892]
[1642458479751,11.0954,138.46,138.37,112.3892]
[1642458480753,11.0954,138.46,138.38,0.25]
[1642458481054,11.0954,138.46,138.39,10.836]
[1642458481254,11.0954,138.46,138.4,0.25]
[1642458481653,10.8354,138.46,138.4,0.25]
[1642458482453,10.8354,138.46,138.38,0.25]
[1642458482654,10.8354,138.46,138.4,10.8355]
[1642458482855,10.8354,138.46,138.41,0.25]
[1642458483055,11.0954,138.46,138.41,0.25]
[1642458484783,10.8346,138.47,138.41,11.0846]
[1642458484980,4.12152641,138.49,138.41,11.0846]
[1642458485186,4.38152641,138.49,138.42,23.2771]
[1642458485384,4.38152641,138.49,138.43,0.25]
[1642458485580,4.12152641,138.49,138.43,0.25]
[1642458485980,14.95482641,138.49,138.43,0.25]
[1642458486181,10.8333,138.49,138.43,0.25]
[1642458486780,4.12152641,138.5,138.43,0.25]
[1642458486980,27.39932641,138.51,138.43,0.25]
[1642458487182,0.26,138.5,138.43,0.25]
[1642458487380,11.0824,138.5,138.43,11.0824]
[1642458487785,11.3424,138.5,138.43,17.3424]
[1642458488485,11.0924,138.5,138.43,17.3424]
[1642458490087,21.73239124,138.52,138.43,17.3424]
[1642458490287,10.38152641,138.52,138.43,10.8324]
[1642458490485,4.38152641,138.52,138.42,10.8329]
[1642458490887,10.8324,138.5,138.42,10.8329]
[1642458491586,12.58859958,138.5,138.42,10.8329]
[1642458491790,0.25,138.49,138.43,0.25]
[1642458492685,0.25,138.49,138.42,16.8329]
[1642458493289,0.25,138.5,138.42,16.8329]
[1642458493488,10.8333,138.49,138.42,16.8329]
[1642458494588,11.0933,138.49,138.42,16.8329]
[1642458494989,0.26,138.49,138.42,16.8329]
[1642458495190,11.0826,138.5,138.42,16.8329]
[1642458495191,0.25,138.5,138.43,0.25]
[1642458495489,0.51,138.5,138.43,11.0818]
[1642458495991,0.25,138.5,138.43,17.3418]
[1642458496190,0.25,138.5,138.43,17.0818]
[1642458497690,0.25,138.5,138.43,17.3418]
[1642458498696,15.21382641,138.51,138.43,17.0818]
[1642458498895,15.21382641,138.51,138.43,17.3418]
[1642458499495,14.95382641,138.51,138.43,17.3418]
[1642458499696,14.95382641,138.51,138.44,23.6431]
[1642458499995,14.95382641,138.51,138.45,0.25]
[1642458500195,4.12152641,138.51,138.45,0.25]
[1642458500396,14.95252641,138.52,138.45,0.25]
[1642458500598,4.12152641,138.52,138.45,0.25]
[1642458501296,4.12152641,138.53,138.45,72.42]
[1642458501497,14.95202641,138.53,138.45,83.2508]
[1642458501696,15.21202641,138.53,138.45,89.5108]
[1642458502424,4.12152641,138.54,138.45,89.5108]
[1642458502623,4.12152641,138.54,138.46,24.789]
[1642458502824,4.12152641,138.54,138.48,10.8285]
[1642458503226,11.19132553,138.55,138.49,0.25]
[1642458504226,11.19132553,138.55,138.49,23.6614]
[1642458504428,11.19132553,138.55,138.49,23.4114]
[1642458504627,11.19132553,138.55,138.49,29.6714]
[1642458505026,11.45132553,138.55,138.49,29.6714]
[1642458505728,11.45132553,138.55,138.5,0.25]
[1642458505927,0.62262553,138.55,138.5,0.25]
[1642458506328,0.36262553,138.55,138.5,0.25]
[1642458509530,0.36262553,138.55,138.5,11.0772]
[1642458509930,0.36262553,138.55,138.5,6.51]
[1642458510331,0.36262553,138.55,138.51,23.8811]
[1642458510732,0.36262553,138.55,138.51,29.8811]
[1642458511132,0.36262553,138.55,138.52,0.25]
[1642458511333,0.36262553,138.55,138.53,6.06439994]
[1642458512635,0.36262553,138.55,138.47,23.4324]
[1642458512935,11.19122553,138.55,138.47,40.2619]
[1642458513235,11.45122553,138.55,138.47,40.2619]
[1642458514039,11.45122553,138.55,138.47,34.2619]
[1642458514240,11.45122553,138.55,138.48,0.25]
[1642458515041,11.45122553,138.55,138.48,11.0786]
[1642458515240,11.45122553,138.55,138.48,17.0786]
[1642458515439,11.45122553,138.55,138.49,24.2545]
[1642458515838,11.45122553,138.55,138.5,0.25]
[1642458518141,11.45122553,138.55,138.49,30.2545]
[1642458518344,11.45122553,138.55,138.5,0.25]
[1642458524250,11.45122553,138.55,138.49,41.0825]
[1642458524454,11.45122553,138.55,138.49,30.2545]
[1642458525651,11.45122553,138.55,138.5,0.25]
[1642458529682,11.45122553,138.55,138.45,23.9854]
[1642458529880,11.45122553,138.55,138.5,0.25]
[1642458530079,11.19122553,138.55,138.46,23.0537]
[1642458530278,11.19122553,138.55,138.47,0.25]
[1642458531285,11.45122553,138.55,138.47,0.25]
[1642458531679,11.45122553,138.55,138.47,11.0797]
[1642458531882,11.45122553,138.55,138.47,17.0797]
[1642458533083,11.45122553,138.55,138.47,6.25]
[1642458533784,11.45122553,138.55,138.47,0.25]
[1642458533985,11.45122553,138.55,138.47,6.25]
[1642458534185,11.45122553,138.55,138.47,17.0798]
[1642458534386,2.058504,138.53,138.47,17.0798]
[1642458534588,12.889004,138.53,138.47,6.25]
[1642458534886,13.149004,138.53,138.47,0.25]
[1642458535090,13.149004,138.53,138.47,6.0]
[1642458535786,13.149004,138.53,138.46,39.884]
[1642458536588,13.149004,138.53,138.47,0.25]
[1642458536786,2.058504,138.52,138.47,0.25]
[1642458536986,12.889704,138.52,138.47,0.25]
[1642458537186,13.149704,138.52,138.47,0.25]
[1642458541394,13.149704,138.52,138.46,39.884]
[1642458542800,13.149704,138.52,138.47,0.25]
[1642458542996,13.149704,138.52,138.47,11.0802]
[1642458543300,2.318504,138.52,138.47,17.0802]
[1642458544598,0.26,138.52,138.47,17.0802]
[1642458544800,13.148504,138.53,138.47,17.0802]
[1642458547199,13.148504,138.53,138.47,16.8302]
[1642458547802,2.058504,138.52,138.47,16.8302]
[1642458548200,2.318504,138.52,138.47,16.8302]
[1642458548402,2.318504,138.52,138.48,0.25]
[1642458549603,2.318504,138.52,138.48,11.0795]
[1642458549803,2.318504,138.52,138.48,17.0795]
[1642458550204,2.058504,138.53,138.48,17.0795]
[1642458550403,2.058504,138.53,138.48,17.3395]
[1642458551204,0.36262553,138.55,138.48,17.3395]
[1642458551404,0.36262553,138.55,138.49,23.1489]
[1642458551607,0.36262553,138.55,138.5,10.8274]
[1642458551808,0.36262553,138.55,138.5,17.3374]
[1642458552205,0.36262553,138.55,138.5,17.0774]
[1642458552408,0.36262553,138.55,138.5,17.3374]
[1642458554909,13.00852953,138.56,138.5,17.3374]
[1642458556309,13.00852953,138.56,138.5,17.0774]
[1642458556509,13.00852953,138.56,138.5,17.3374]
[1642458557611,13.00852953,138.56,138.5,17.0774]
[1642458558814,13.00852953,138.56,138.5,17.3374]
[1642458559311,11.0874,138.56,138.5,17.3374]
[1642458561014,11.0874,138.56,138.5,16.8274]
[1642458561218,11.0874,138.56,138.5,17.0874]
[1642458562644,11.0874,138.56,138.5,15.58042]
[1642458563243,11.0874,138.56,138.51,0.25]
[1642458566652,11.0874,138.56,138.51,11.0777]
[1642458566947,11.0874,138.56,138.51,17.0777]
[1642458567352,11.0874,138.56,138.51,6.0]
[1642458567549,11.0874,138.56,138.5,0.26]
[1642458567749,11.0874,138.56,138.49,29.4089]
[1642458568650,11.0874,138.56,138.5,10.8283]
[1642458568849,11.0874,138.56,138.5,17.3383]
[1642458570370,11.0874,138.56,138.5,6.51]
[1642458571371,11.0874,138.56,138.5,17.3384]
[1642458571571,11.0874,138.56,138.5,11.3384]
[1642458571774,11.0874,138.56,138.5,17.3384]
[1642458575477,0.26,138.56,138.5,17.3384]
[1642458575879,40.47492641,138.59,138.51,24.7743]
[1642458576080,40.47492641,138.59,138.52,10.827]
[1642458576279,40.47492641,138.59,138.52,17.077]
[1642458576580,36.3534,138.59,138.52,17.077]
[1642458577481,36.3534,138.59,138.53,22.9879]
[1642458577679,10.827,138.57,138.53,22.9879]
[1642458577879,11.087,138.57,138.54,0.25]
[1642458579286,11.087,138.57,138.55,3.03219997]
[1642458579486,11.087,138.57,138.54,0.25]
[1642458580588,0.26,138.57,138.54,0.25]
[1642458580821,11.0863,138.58,138.54,0.25]
[1642458588624,0.26,138.58,138.54,11.0755]
[1642458588825,11.0855,138.59,138.54,17.0755]
[1642458591428,11.0855,138.59,138.54,6.25]
[1642458592027,11.0855,138.59,138.54,6.0]
[1642458592827,11.0855,138.59,138.53,29.2479]
[1642458593327,11.0855,138.59,138.54,0.25]
[1642458595134,11.0855,138.59,138.53,17.0859]
[1642458595332,11.0855,138.59,138.53,16.8259]
[1642458596131,11.0855,138.59,138.53,10.8259]
[1642458597935,11.0855,138.59,138.53,16.8259]
[1642458598636,11.0855,138.59,138.53,6.0]
[1642458598834,11.0855,138.59,138.52,16.8269]
[1642458599035,11.0855,138.59,138.53,0.25]